bitfinex/quotes_ETHUSD_20240717
["timestamp","ask_amount","ask_price","bid_price","bid_amount"]
[1721249795483,7.9781414,3422.9,3422.8,0.4]
[1721249796250,7.97831377,3422.9,3422.8,0.4]
[1721249796501,10.31961377,3422.9,3422.8,0.4]
[1721249796661,10.31961377,3422.9,3420.1,1.170379]
[1721249796662,2.92229,3422.0,3421.4,0.60782353]
[1721249796863,2.92229,3422.0,3421.3,2.2717]
[1721249796864,2.92278,3421.4,3421.3,2.2717]
[1721249797067,3.9915502,3421.4,3421.3,2.2717]
[1721249797885,3.12826138,3421.4,3421.3,2.2717]
[1721249798045,3.9915559,3421.4,3421.3,2.2717]
[1721249798251,3.12826138,3421.4,3421.3,2.2717]
[1721249803056,3.12826138,3421.4,3420.9,2.3421]
[1721249803354,4.17426138,3421.4,3420.9,2.3421]
[1721249803805,4.17426138,3421.4,3420.9,2.87631]
[1721249805873,3.12826138,3421.4,3420.9,2.87631]
[1721249807518,0.20548138,3421.4,3420.9,5.79951]
[1721249807711,0.20548138,3421.4,3421.0,5.27756]
[1721249808028,2.92238,3421.9,3421.2,2.3545]
[1721249808229,0.20500857,3421.3,3421.2,2.3545]
[1721249808823,2.92244,3421.8,3421.2,2.3545]
[1721249808977,0.20500857,3421.3,3421.2,2.3545]
[1721249809320,0.20500857,3421.3,3421.2,3.4199275]
[1721249809473,2.92244,3421.8,3421.2,3.4199275]
[1721249809675,0.20501691,3421.7,3421.2,3.4199275]
[1721249810474,0.20501691,3421.7,3421.2,6.3428475]
[1721249811116,0.20501691,3421.7,3421.3,2.92284]
[1721249811299,0.20501691,3421.7,3421.4,0.92656875]
[1721249811494,5.84466,3422.0,3421.4,0.92656875]
[1721249811779,0.20501067,3421.9,3421.4,0.92656875]
[1721249812604,3.12738067,3421.9,3421.4,0.92656875]
[1721249812814,3.12738067,3421.9,3421.3,2.92284]
[1721249813493,4.17338067,3421.9,3421.3,2.92284]
[1721249814134,4.17338067,3421.9,3421.3,3.12284]
[1721249815225,1.25101067,3421.9,3421.3,0.2]
[1721249815544,0.20501067,3421.9,3421.3,0.2]
[1721249815741,4.17341067,3421.9,3421.3,0.2]
[1721249818921,1.25101067,3421.9,3421.3,0.2]
[1721249819163,0.20501067,3421.9,3421.3,1.052342]
[1721249820751,3.20501067,3421.9,3421.3,1.052342]
[1721249821623,6.12737067,3421.9,3421.3,1.052342]
[1721249824810,3.20501067,3421.9,3421.3,1.052342]
[1721249825018,0.20501067,3421.9,3421.3,1.052342]
[1721249826214,1.25101067,3421.9,3421.3,0.4]
[1721249826709,0.20501067,3421.9,3421.3,0.4]
[1721249827462,3.96857,3421.7,3421.3,0.4]
[1721249827661,1.046,3421.6,3421.3,0.4]
[1721249827968,4.17366358,3421.6,3421.3,0.4]
[1721249828650,1.046,3421.4,3421.3,0.4]
[1721249829040,0.20502108,3421.4,3421.3,0.4]
[1721249829439,3.96863,3421.6,3421.3,0.4]
[1721249829653,0.20502108,3421.4,3421.3,0.4]
[1721249829851,2.92263,3421.6,3421.3,0.4]
[1721249830056,0.20502108,3421.4,3421.3,0.4]
[1721249830444,2.92263,3421.6,3421.3,0.4]
[1721249830639,0.20502108,3421.4,3421.3,0.4]
[1721249831263,2.92263,3421.6,3421.3,0.4]
[1721249831430,0.20502108,3421.4,3421.3,0.4]
[1721249831853,2.92263,3421.6,3421.3,0.4]
[1721249832053,0.20502108,3421.4,3421.3,0.4]
[1721249832555,7.007533,3421.6,3421.3,0.4]
[1721249832731,0.20502108,3421.4,3421.3,0.4]
[1721249832940,6.31843,3421.6,3421.3,0.4]
[1721249833160,0.20502108,3421.5,3421.3,0.4]
[1721249836073,2.92254,3421.7,3421.3,0.4]
[1721249836290,0.20500441,3421.4,3421.3,0.4]
[1721249836445,2.92254,3421.7,3421.3,0.85823343]
[1721249836646,0.20500024,3421.4,3421.3,0.85823343]
[1721249836858,2.92254,3421.7,3421.3,0.85823343]
[1721249837150,0.86333531,3421.6,3421.3,0.85823343]
[1721249837368,0.20499816,3421.5,3421.3,0.85823343]
[1721249837983,2.92253,3421.7,3421.3,0.85823343]
[1721249838188,0.20499816,3421.4,3421.3,0.85823343]
[1721249838386,2.92253,3421.7,3421.3,0.85823343]
[1721249838582,0.20499816,3421.4,3421.3,0.85823343]
[1721249838760,2.92253,3421.7,3421.3,0.85823343]
[1721249839080,1.06829908,3421.6,3421.3,0.85823343]
[1721249839395,0.86330109,3421.5,3421.3,0.4]
[1721249840079,0.20499816,3421.4,3421.3,0.4]
[1721249840580,0.86329215,3421.5,3421.3,0.4]
[1721249840780,0.20499816,3421.4,3421.3,0.4]
[1721249841082,1.06829031,3421.4,3421.3,0.4]
[1721249841744,1.06833349,3421.4,3421.3,0.4]
[1721249842173,0.20499816,3421.4,3421.3,0.4]
[1721249842371,4.1498137,3421.6,3421.3,0.4]
[1721249842372,2.09107369,3421.5,3421.3,0.4]
[1721249842654,1.06887815,3421.4,3421.3,0.4]
[1721249842862,1.06897549,3421.4,3421.3,0.4]
[1721249844888,0.20499816,3421.4,3421.3,0.4]
[1721249845050,1.06877143,3421.4,3421.3,0.4]
[1721249848296,1.06872175,3421.4,3421.3,0.4]
[1721249849587,1.06872175,3421.4,3421.2,2.4128]
[1721249849788,0.86372359,3421.3,3421.2,2.4128]
[1721249850009,1.06874051,3421.3,3421.2,2.65408]
[1721249850358,3.99167051,3421.3,3420.7,2.4736]
[1721249850558,3.99167051,3421.3,3420.8,2.54114218]
[1721249850559,3.78667359,3421.2,3420.8,2.54114218]
[1721249850792,1.06874129,3421.1,3420.7,2.4736]
[1721249850992,0.20502109,3421.1,3420.8,1.01645198]
[1721249851159,0.20502109,3421.1,3420.7,2.4736]
[1721249853916,3.3226,3421.4,3420.7,2.4736]
[1721249854082,0.20502733,3421.0,3420.7,2.4736]
[1721249854411,0.20502733,3420.9,3420.7,2.4736]
[1721249854788,2.9229,3421.3,3420.7,2.4736]
[1721249854984,0.86372925,3421.2,3420.7,2.4736]
[1721249855315,1.06875658,3421.2,3420.7,2.4736]
[1721249855617,0.86372925,3421.1,3420.7,2.4736]
[1721249856195,0.20502733,3421.0,3420.7,2.4736]
[1721249856378,2.9229,3421.3,3420.7,2.4736]
[1721249856723,1.06876476,3421.2,3420.7,2.4736]
[1721249856877,0.86373743,3421.1,3420.7,2.4736]
[1721249857413,0.20502733,3421.0,3420.7,2.4736]
[1721249857613,2.9229,3421.3,3420.7,2.4736]
[1721249857982,1.06874256,3421.2,3420.7,2.4736]
[1721249858179,0.86371523,3421.1,3420.7,2.4736]
[1721249858678,0.20502733,3421.0,3420.7,2.4736]
[1721249859086,2.9229,3421.3,3420.7,2.4736]
[1721249859294,0.20502733,3420.9,3420.7,2.4736]
[1721249859614,0.20502733,3420.8,3420.7,2.4736]
[1721249859807,2.9229,3421.3,3420.7,2.4736]
[1721249859808,2.9229,3421.3,3420.7,3.49007191]
[1721249859978,0.20502733,3420.8,3420.7,2.4736]
[1721249860306,0.20502733,3420.8,3420.7,3.49007136]
[1721249860505,2.9229,3421.3,3420.7,5.01477911]
[1721249860711,0.20502733,3420.8,3420.7,2.4736]
[1721249861209,2.9229,3421.3,3420.7,5.01477713]
[1721249861417,0.20502733,3420.8,3420.7,2.4736]
[1721249861573,2.9229,3421.3,3420.7,5.01477745]
[1721249861777,1.06873416,3421.2,3420.7,2.4736]
[1721249862077,0.8636819,3421.1,3420.7,2.4736]
[1721249862698,0.20502733,3421.0,3420.7,2.4736]
[1721249863091,2.9229,3421.3,3420.7,2.4736]
[1721249863430,2.9229,3421.3,3420.5,3.06262353]
[1721249863431,1.90969336,3421.2,3420.5,3.06262353]
[1721249863634,0.86369336,3421.1,3420.6,2.54118628]
[1721249863784,0.86369336,3421.1,3420.7,2.54118628]
[1721249863984,0.86369336,3421.1,3420.5,3.06262353]
[1721249864206,0.20502733,3421.0,3420.6,0.49425655]
[1721249864407,0.20502733,3421.0,3420.7,2.54118622]
[1721249864612,1.046,3421.2,3420.5,0.60782353]
[1721249864778,1.046,3420.6,3420.4,0.30540145]
[1721249865089,0.20494817,3420.5,3420.4,0.30540145]
[1721249866996,0.20494817,3420.5,3420.4,2.70460145]
[1721249867196,8.5371937,3421.1,3420.4,2.9750616]
[1721249867385,1.47946912,3421.0,3420.4,2.9750616]
[1721249867580,1.27463391,3420.9,3420.4,2.9750616]
[1721249868010,0.20480645,3420.8,3420.4,2.9750616]
[1721249868483,8.356,3421.1,3420.4,2.9750616]
[1721249868683,0.20480645,3420.7,3420.5,1.47945699]
[1721249868890,3.4952,3420.9,3420.4,0.5758616]
[1721249869091,0.20480645,3420.6,3420.4,0.5758616]
[1721249869289,6.41841,3420.9,3420.4,0.5758616]
[1721249869510,0.20484813,3420.5,3420.4,0.30540145]
[1721249869718,6.41841,3420.9,3420.4,1.32196839]
[1721249869900,0.20484813,3420.5,3420.4,0.30540145]
[1721249870118,6.41841,3420.9,3420.4,0.30540145]
[1721249870324,0.20484813,3420.5,3420.4,0.30540145]
[1721249870536,6.41841,3420.9,3420.4,1.32197182]
[1721249870708,0.20484813,3420.5,3420.4,0.30540145]
[1721249871035,0.20484813,3420.5,3420.4,1.64965396]
[1721249871208,6.41841,3420.9,3420.4,1.64965396]
[1721249871411,1.25084813,3420.5,3420.4,0.30540145]
[1721249871644,1.046,3420.5,3420.4,0.30540145]
[1721249871802,1.25080645,3420.5,3420.4,0.30540145]
[1721249876780,3.71310645,3420.5,3420.4,0.30540145]
[1721249877074,7.60029509,3420.5,3420.4,0.30540145]
[1721249877984,10.52383509,3420.5,3420.4,0.30540145]
[1721249882359,9.56018645,3420.5,3420.4,0.30540145]
[1721249883689,6.63664645,3420.5,3420.4,0.30540145]
[1721249883986,4.17434645,3420.5,3420.4,0.30540145]
[1721249885849,7.09788645,3420.5,3420.4,0.30540145]
[1721249886948,6.76488645,3420.5,3420.4,0.30540145]
[1721249887456,6.43188645,3420.5,3420.4,0.30540145]
[1721249890680,7.8949271,3420.5,3420.4,0.30540145]
[1721249890997,10.8949271,3420.5,3420.4,0.30540145]
[1721249892373,13.3298271,3420.5,3420.4,0.30540145]
[1721249892573,11.86678645,3420.5,3420.4,0.30540145]
[1721249896814,11.48678645,3420.5,3420.4,0.30540145]
[1721249896985,10.09788645,3420.5,3420.4,0.30540145]
[1721249901484,2.92389,3420.1,3420.0,0.1090341]
[1721249901814,4.17440043,3420.1,3420.0,0.1090341]
[1721249908932,7.09829043,3420.1,3420.0,0.1090341]
[1721249909525,5.5488,3420.0,3418.6,0.60782353]
[1721249909726,5.5488,3420.0,3418.1,0.50599048]
[1721249909727,2.92492,3418.9,3418.1,3.95457097]
[1721249910035,2.92492,3418.9,3418.1,2.4289]
[1721249910036,1.046,3418.6,3418.1,2.4289]
[1721249910261,0.20447292,3418.8,3418.1,2.4289]
[1721249910419,0.20427686,3418.5,3418.1,2.4289]
[1721249910609,1.046,3419.0,3418.3,2.4289]
[1721249910947,0.20427686,3418.9,3418.3,2.4289]
[1721249911330,2.92504,3418.8,3418.3,2.4289]
[1721249911538,1.046,3418.7,3418.3,2.4289]
[1721249911743,1.25027686,3418.7,3418.3,2.4289]
[1721249912034,1.25027686,3418.7,3418.4,0.27325724]
[1721249912250,1.046,3418.5,3418.4,0.27325724]
[1721249912604,1.25023306,3418.5,3418.4,0.27325724]
[1721249914171,0.20423306,3418.5,3418.4,0.27325724]
[1721249914378,2.92478,3419.1,3418.4,0.27325724]
[1721249914538,1.046,3418.9,3418.5,0.27021572]
[1721249915171,0.20416212,3418.8,3418.5,0.27021572]
[1721249915381,1.046,3418.7,3418.5,0.27021572]
[1721249915757,0.20416212,3418.6,3418.5,0.27021572]
[1721249921597,0.20416212,3418.6,3418.3,2.4289]
[1721249921748,1.046,3418.4,3418.3,2.4289]
[1721249921944,1.25018089,3418.4,3418.3,2.4289]
[1721249923797,1.25018089,3418.4,3417.6,2.3637]
[1721249923971,1.046,3418.1,3417.6,2.3637]
[1721249924171,1.046,3418.1,3417.7,0.23637]
[1721249925073,1.046,3418.1,3417.8,2.4938]
[1721249925473,0.20389511,3418.0,3417.8,2.4938]
[1721249925674,1.046,3417.9,3417.2,2.3167]
[1721249925873,1.046,3417.6,3417.2,2.3167]
[1721249926090,1.24980538,3417.8,3417.3,0.27753023]
[1721249926266,1.046,3417.8,3417.3,0.27753023]
[1721249926486,0.20380538,3417.7,3417.4,2.3167]
[1721249926794,1.046,3418.0,3417.4,2.3167]
[1721249927089,0.20380538,3417.9,3417.4,2.3167]
[1721249927289,1.24980538,3417.9,3417.5,0.25942302]
[1721249927686,1.046,3417.7,3417.5,0.25942302]
[1721249928059,0.20376988,3417.6,3417.5,0.25942302]
[1721249930678,0.20376988,3417.6,3417.4,2.3167]
[1721249931302,1.046,3417.9,3417.4,2.3167]
[1721249931661,0.20370935,3417.8,3417.4,2.3167]
[1721249931866,1.046,3417.7,3417.4,2.3167]
[1721249932500,0.20370935,3417.6,3417.4,2.3167]
[1721249932660,0.20370935,3417.6,3417.5,0.23167]
[1721249932864,1.046,3417.7,3417.5,0.23167]
[1721249933178,0.20370935,3417.6,3417.5,0.23167]
[1721249933591,0.20370935,3417.6,3416.7,2.4825]
[1721249933798,1.046,3417.1,3416.7,2.4825]
[1721249934294,1.046,3417.3,3416.7,2.4825]
[1721249934671,1.046,3417.1,3416.7,2.4825]
[1721249934865,1.046,3417.1,3416.8,0.26322875]
[1721249935495,1.046,3417.3,3416.8,0.26322875]
[1721249935801,0.2037219,3417.2,3416.8,0.26322875]
[1721249936002,1.046,3417.3,3416.8,0.26322875]
[1721249936206,0.2037219,3417.2,3416.8,0.26322875]
[1721249936499,1.046,3417.3,3416.9,0.28955162]
[1721249936977,0.2037219,3417.2,3416.9,0.28955162]
[1721249937183,1.046,3417.3,3416.9,0.28955162]
[1721249937381,0.2037219,3417.2,3416.9,0.28955162]
[1721249937583,1.046,3417.3,3416.9,0.28955162]
[1721249937807,0.2037219,3417.2,3416.9,0.28955162]
[1721249938134,1.046,3417.3,3416.9,0.28955162]
[1721249938334,0.2037219,3417.1,3416.9,0.28955162]
[1721249938535,1.046,3417.3,3416.9,0.28955162]
[1721249939036,0.2037219,3417.2,3416.9,0.28955162]
[1721249939248,1.046,3417.5,3416.9,0.28955162]
[1721249939529,0.2037219,3417.1,3416.9,0.28955162]
[1721249939735,1.046,3417.5,3416.9,0.28955162]
[1721249940041,0.2037219,3417.4,3416.9,0.28955162]
[1721249940334,0.2037219,3417.4,3417.0,2.472]
[1721249940510,0.2037219,3417.4,3417.1,0.27615516]
[1721249940706,1.046,3417.6,3417.1,0.27615516]
[1721249940927,0.20360497,3417.3,3417.1,0.27615516]
[1721249941104,1.046,3417.8,3417.1,0.27615516]
[1721249941431,1.046,3417.8,3417.2,0.30377068]
[1721249941633,7.31,3418.0,3417.3,2.444]
[1721249943043,1.046,3418.1,3417.3,2.444]
[1721249944116,8.356,3418.3,3417.3,3.49]
[1721249944308,1.046,3418.3,3417.3,3.49]
[1721249944643,1.046,3418.1,3417.4,0.37937707]
[1721249945223,1.046,3417.9,3417.4,0.37937707]
[1721249946357,1.046,3418.1,3417.4,0.37937707]
[1721249947137,2.3241,3418.5,3417.4,0.37937707]
[1721249947322,1.046,3418.3,3417.5,2.3189]
[1721249947522,1.046,3418.3,3417.6,0.37442771]
[1721249950464,0.2037177,3418.2,3417.6,0.37442771]
[1721249952626,0.2037177,3418.2,3417.9,0.2]
[1721249952825,1.046,3418.3,3417.9,0.2]
[1721249953030,0.20258473,3418.2,3417.9,0.2]
[1721249953269,1.046,3418.3,3417.9,0.2]
[1721249953453,0.20258473,3418.1,3417.9,0.2]
[1721249953659,1.046,3418.3,3417.9,0.2]
[1721249953970,0.20258473,3418.0,3417.9,0.2]
[1721249954154,1.046,3418.1,3417.9,0.2]
[1721249954328,0.20258473,3418.0,3417.9,0.2]
[1721249954857,0.20260143,3418.0,3417.9,0.2]
[1721249955062,1.046,3418.2,3417.9,0.2]
[1721249955364,0.20260143,3418.0,3417.9,2.4781]
[1721249955531,1.046,3418.4,3417.9,2.72591]
[1721249955730,0.19575899,3418.0,3417.9,2.72591]
[1721249955961,1.046,3418.4,3417.9,2.72591]
[1721249956327,0.19575899,3418.3,3417.9,2.72591]
[1721249957133,0.19575899,3418.3,3417.9,2.92591]
[1721249957331,0.19575899,3418.3,3418.0,0.292591]
[1721249957532,0.19575899,3418.3,3418.1,2.3694]
[1721249957753,1.046,3418.7,3418.1,2.3694]
[1721249957957,0.19579269,3418.2,3418.1,2.3694]
[1721249958133,1.046,3418.7,3418.1,2.3694]
[1721249958333,1.046,3418.7,3418.2,0.3061991]
[1721249958590,0.19579269,3418.6,3418.2,0.3061991]
[1721249966257,0.19579269,3418.6,3418.2,0.5061991]
[1721249970517,1.046,3418.5,3418.2,0.5061991]
[1721249971200,0.19595283,3418.4,3418.2,0.7061991]
[1721249971502,0.19595283,3418.4,3418.3,0.30755991]
[1721249972180,1.046,3418.7,3418.3,0.30755991]
[1721249972382,1.046,3418.7,3418.2,0.4]
[1721249972607,0.19595283,3418.6,3418.2,0.4]
[1721249972769,1.046,3418.3,3418.2,0.4]
[1721249973169,1.24195283,3418.3,3418.2,0.4]
[1721249974179,6.58488283,3418.3,3418.2,0.4]
[1721249974380,10.53591011,3418.3,3418.2,0.4]
[1721249976620,8.11841011,3418.3,3418.2,0.4]
[1721249976772,3.19595283,3418.3,3418.2,0.4]
[1721249976973,4.24195283,3418.3,3418.2,0.4]
[1721249977388,1.24195283,3418.3,3418.2,0.4]
[1721249977624,0.19595283,3418.3,3418.2,0.4]
[1721249978175,1.046,3418.6,3418.2,0.4]
[1721249978405,0.19569154,3418.3,3418.2,0.4]
[1721249978582,1.046,3418.6,3418.2,0.4]
[1721249978788,0.19573157,3418.3,3418.2,0.4]
[1721249978973,1.046,3418.6,3418.2,0.4]
[1721249979184,7.31,3419.0,3418.2,5.8336]
[1721249979390,7.31,3419.4,3418.9,1.046]
[1721249979622,0.16974873,3418.9,3418.7,1.046]
[1721249979926,1.046,3419.6,3418.5,1.046]
[1721249980241,1.046,3419.6,3418.6,2.54232952]
[1721249980460,0.16985928,3419.5,3418.7,2.06293198]
[1721249980738,0.16985928,3419.5,3418.8,0.35883295]
[1721249980895,8.356,3419.8,3418.8,0.35883295]
[1721249981096,1.046,3419.5,3418.8,0.35883295]
[1721249981513,0.16997621,3419.4,3418.5,1.046]
[1721249981739,0.16997621,3419.4,3418.5,2.57140756]
[1721249981930,0.16997621,3419.4,3418.6,1.01694223]
[1721249982234,0.16997621,3419.4,3418.5,1.52540756]
[1721249982529,7.31,3419.8,3418.6,2.54232068]
[1721249982821,0.17012074,3419.3,3418.7,1.62445954]
[1721249983044,7.31,3419.8,3418.7,0.60754642]
[1721249983544,0.17012074,3419.7,3418.7,1.6244113]
[1721249983844,0.17012074,3419.7,3418.7,0.60754642]
[1721249984642,0.17012074,3419.7,3418.8,2.3716]
[1721249984811,0.17012074,3419.7,3418.9,0.45044525]
[1721249988558,0.17012074,3419.7,3418.9,3.37534525]
[1721249989114,0.17012074,3419.7,3419.0,1.01677693]
[1721249989343,0.17012074,3419.7,3418.9,3.37534525]
[1721249990721,0.17012074,3419.7,3418.9,3.4338233]
[1721249990915,3.0,3420.3,3419.0,0.99457333]
[1721249991163,0.17033749,3420.2,3419.0,0.99457333]
[1721249992322,0.17033749,3420.2,3419.0,3.91939333]
[1721249996560,0.17033749,3420.2,3419.2,2.92457]
[1721249996863,0.17033749,3420.2,3419.4,2.3156]
[1721249997065,0.17033749,3420.2,3419.5,0.82231943]
[1721249997220,7.31,3420.7,3419.5,0.82231943]
[1721249997424,7.31,3420.7,3419.7,2.92422]
[1721249997665,0.17046919,3420.6,3419.7,2.92422]
[1721249997852,2.3439,3420.8,3419.9,2.92404]
[1721249998154,0.17046919,3420.7,3420.0,0.584813]
[1721249998524,2.3439,3420.8,3420.0,0.584813]
[1721249998721,0.17046919,3420.7,3419.7,2.92422]
[1721249999727,0.17046919,3420.7,3419.8,2.92413]
[1721250002931,0.17046919,3420.7,3419.9,0.05846451]
[1721250003127,0.17046919,3420.7,3419.8,2.92413]
[1721250004366,0.17046919,3420.7,3420.2,1.047]
[1721250006377,2.3284,3420.6,3419.6,0.2]
[1721250006585,2.3284,3420.6,3419.8,1.047]
[1721250007565,2.3284,3420.6,3419.7,0.62623394]
[1721250007766,2.3284,3420.6,3419.9,1.047]
[1721250008335,2.3284,3420.6,3419.6,0.4]
[1721250008537,5.36503,3419.7,3419.6,0.4]
[1721250008839,11.35326,3419.7,3419.6,0.4]
[1721250009059,17.27749,3419.7,3419.6,0.4]
[1721250009261,19.005239,3419.7,3419.6,0.4]
[1721250009651,2.4004,3418.6,3417.3,7.39]
[1721250009968,2.4004,3418.6,3417.1,2.92639]
[1721250012551,2.4004,3418.6,3417.2,3.0]
[1721250013280,2.4004,3418.6,3417.0,5.92652]
[1721250013457,2.4004,3418.6,3417.1,1.367351]
[1721250013889,5.32558,3418.6,3417.1,1.367351]
[1721250015489,0.16970197,3418.5,3417.1,1.367351]
[1721250018711,2.2787,3418.4,3417.1,1.367351]
[1721250018875,2.92553,3418.2,3416.7,0.60782353]
[1721250019197,0.16974237,3418.1,3416.7,0.60782353]
[1721250019801,2.4476,3418.0,3416.7,0.60782353]
[1721250020002,2.4476,3418.0,3416.8,0.46038684]
[1721250020300,0.16974661,3417.9,3416.8,0.46038684]
[1721250021925,0.16974661,3417.9,3416.7,0.60782353]
[1721250022074,2.4476,3417.4,3416.7,0.60782353]
[1721250022278,2.92645,3417.1,3416.7,0.60782353]
[1721250022601,0.16959562,3417.0,3416.7,0.60782353]
[1721250023431,0.16959562,3417.0,3416.6,0.1497875]
[1721250023432,2.92678,3416.8,3416.6,0.1497875]
[1721250023577,2.2596,3416.9,3416.6,0.1497875]
[1721250023578,8.823851,3416.7,3416.6,0.1497875]
[1721250023773,10.86588931,3416.7,3416.6,0.1497875]
[1721250025004,2.92716,3416.3,3415.2,0.60782353]
[1721250025398,0.16906163,3416.2,3415.2,0.60782353]
[1721250026895,2.3742,3416.1,3415.2,0.60782353]
[1721250027216,2.3742,3414.5,3414.1,2.03343598]
[1721250027629,0.16894457,3414.4,3414.1,2.03343598]
[1721250027810,2.92894,3414.2,3414.1,2.03343598]
[1721250028138,3.09778666,3414.2,3414.1,2.03343598]
[1721250029913,0.16227445,3414.4,3413.0,0.1771196]
[1721250030082,3.09107445,3414.4,3413.0,0.1771196]
[1721250030279,0.16227445,3414.4,3413.0,0.1771196]
[1721250030998,3.09107445,3414.4,3413.0,0.1771196]
[1721250031213,2.92901,3414.2,3413.0,0.1771196]
[1721250031414,0.60200745,3414.1,3413.0,0.1771196]
[1721250031597,0.76433348,3414.1,3413.0,0.1771196]
[1721250031894,2.92927,3413.9,3413.0,0.1771196]
[1721250032105,0.16230025,3413.8,3413.0,0.1771196]
[1721250032629,3.0,3414.4,3413.0,0.1771196]
[1721250032918,2.3742,3414.5,3413.0,0.1771196]
[1721250033082,0.16219711,3414.4,3413.0,0.1771196]
[1721250033288,0.16219711,3414.4,3413.1,0.31071596]
[1721250034940,0.16219711,3414.4,3413.1,3.24059596]
[1721250037530,0.16219711,3414.4,3413.1,0.31071596]
[1721250040020,2.3742,3414.5,3413.1,3.24058596]
[1721250040021,2.20339711,3414.5,3413.1,3.24058596]
[1721250040231,0.14642879,3414.3,3413.2,0.88615056]
[1721250040395,2.20339711,3414.5,3413.2,0.88615056]
[1721250040602,0.14642879,3414.2,3413.2,0.88615056]
[1721250040909,0.14642879,3414.1,3413.2,0.88615056]
[1721250041104,0.14154783,3414.0,3413.2,0.88615056]
[1721250041306,1.6838259,3414.5,3413.3,0.73038561]
[1721250041523,0.14154783,3414.4,3413.3,0.73038561]
[1721250047208,2.92891,3414.3,3413.0,0.1771196]
[1721250047564,2.92908,3414.1,3413.0,0.1771196]
[1721250047907,0.1415457,3414.0,3413.0,0.1771196]
[1721250050115,2.92971,3413.4,3413.0,0.1771196]
[1721250050312,8.38676,3413.1,3413.0,0.1771196]
[1721250050727,11.52812612,3413.1,3413.0,0.1771196]
[1721250051312,12.07812612,3413.1,3413.0,0.1771196]
[1721250051732,15.00800612,3413.1,3413.0,0.1771196]
[1721250051908,12.07812612,3413.1,3413.0,0.1771196]
[1721250052113,19.029796,3413.1,3413.0,0.1771196]
[1721250052313,2.9307,3412.2,3410.9,2.4835]
[1721250052514,0.14085105,3412.1,3411.0,7.39]
[1721250052714,0.14085105,3412.1,3410.9,2.4835]
[1721250053314,0.14085105,3412.1,3410.3,2.3516]
[1721250053315,3.07159105,3412.1,3410.3,2.3516]
[1721250053519,2.93083,3412.0,3410.4,0.528394]
[1721250053913,0.14085105,3411.9,3410.4,0.528394]
[1721250054154,3.07178105,3411.9,3410.4,0.528394]
[1721250054529,3.0,3411.8,3410.4,0.528394]
[1721250054873,0.14067997,3411.7,3410.3,2.3516]
[1721250055085,2.93117,3411.6,3410.3,2.3516]
[1721250055214,3.37,3411.4,3410.0,0.15]
[1721250055413,5.4522,3411.5,3410.0,0.15]
[1721250055414,3.37,3410.2,3410.0,0.15]
[1721250055741,3.08,3411.0,3410.0,0.15]
[1721250055742,0.14034862,3410.1,3410.0,0.15]
[1721250055941,0.14034862,3410.1,3409.7,0.1497875]
[1721250055942,5.86544,3409.8,3409.7,0.1497875]
[1721250056144,2.4522,3410.1,3408.5,0.30544969]
[1721250056145,0.55,3410.0,3408.5,0.30544969]
[1721250056471,0.55,3410.0,3406.4,0.06356674]
[1721250056472,0.55,3410.0,3406.4,6.74e-06]
[1721250056473,5.87112,3406.5,3406.4,6.74e-06]
[1721250056618,3.37,3406.5,3406.4,6.74e-06]
[1721250056816,2.93503,3407.2,3406.4,6.74e-06]
[1721250057018,0.13518067,3406.5,3406.4,6.74e-06]
[1721250057239,6.30474,3407.5,3406.4,6.74e-06]
[1721250057424,0.13467986,3406.5,3406.4,6.74e-06]
[1721250057623,3.37,3407.0,3406.4,6.74e-06]
[1721250057822,0.13436734,3406.5,3406.4,6.74e-06]
[1721250058028,3.0,3406.9,3406.4,6.74e-06]
[1721250058285,0.13402662,3406.5,3406.4,6.74e-06]
[1721250058419,3.553,3406.9,3406.4,6.74e-06]
[1721250058617,0.13402662,3406.5,3406.4,6.74e-06]
[1721250058844,2.93447,3407.8,3406.4,6.74e-06]
[1721250059028,0.130093,3406.5,3406.4,6.74e-06]
[1721250059230,3.0,3407.7,3406.4,6.74e-06]
[1721250059474,0.130093,3406.5,3406.4,6.74e-06]
[1721250059623,3.0,3408.0,3406.4,6.74e-06]
[1721250059822,0.6553,3408.0,3406.4,6.74e-06]
[1721250060027,0.130093,3407.9,3406.4,6.74e-06]
[1721250060271,0.130093,3407.9,3407.0,2.9351]
[1721250060446,3.553,3409.3,3407.1,5.93503]
[1721250060619,3.553,3407.7,3406.4,6.74e-06]
[1721250060998,4.41,3409.2,3406.4,6.74e-06]
[1721250060999,3.553,3408.4,3406.4,2.93563674]
[1721250061261,0.1292749,3407.6,3406.5,0.313848]
[1721250061464,2.93435,3408.0,3406.4,6.74e-06]
[1721250061673,0.1292749,3407.5,3406.4,6.74e-06]
[1721250061820,0.3553,3408.3,3407.0,2.93512]
[1721250062020,0.1292749,3407.4,3407.3,2.93486]
[1721250062260,2.93286,3409.7,3407.6,2.93454]
[1721250062462,2.93155,3411.2,3407.3,2.93486]
[1721250062463,2.93228,3410.4,3407.3,2.93486]
[1721250062647,0.1293929,3409.6,3406.5,5.452]
[1721250062856,3.553,3410.1,3407.9,2.93435]
[1721250063172,0.58053,3410.0,3408.2,2.93409]
[1721250063399,0.1293929,3410.0,3408.5,2.93383]
[1721250063746,2.9322,3410.4,3408.5,2.93383]
[1721250064050,3.0620105,3410.3,3408.0,2.745435]
[1721250064271,3.0620105,3410.3,3408.1,3.0]
[1721250064438,2.93282,3409.7,3408.0,0.293435]
[1721250064636,2.9331,3409.4,3407.4,2.93471]
[1721250064890,3.226182,3409.6,3407.5,3.0]
[1721250065034,3.12976197,3409.3,3407.7,2.93445]
[1721250065239,3.12976197,3409.3,3407.5,3.0]
[1721250065240,0.293282,3409.6,3408.1,2.93417]
[1721250065487,0.12976197,3409.2,3408.1,2.93417]
[1721250065765,3.0,3410.0,3408.2,0.586835]
[1721250066148,0.12976197,3409.9,3408.2,3.520915]
[1721250066441,0.12976197,3409.9,3408.4,2.93392]
[1721250066663,0.12976197,3409.9,3408.3,3.0]
[1721250066664,0.12976197,3409.9,3408.8,2.93355]
[1721250066867,2.93201,3410.7,3408.8,2.93355]